[Event "Early-Titled-Tuesday-Blitz-January-16-2024"]
[Site "Chess.com"]
[Date "2024.01.16"]
[Round "3"]
[White "RojonR"]
[Black "giomar27"]
[Result "1-0"]
[WhiteElo "2613"]
[BlackElo "2418"]
[TimeControl "180+1"]
[EndTime "8:29:36 PST"]
[Termination "RojonR won by resignation"]

1. e4 {[%clk 0:03:00.7]} 1... g6 {[%clk 0:02:59.8]} 2. d4 {[%clk 0:02:57.5]}
2... Bg7 {[%clk 0:03:00.5]} 3. Nf3 {[%clk 0:02:57.4]} 3... a6 {[%clk 0:03:00.4]}
4. Nc3 {[%clk 0:02:54.5]} 4... b5 {[%clk 0:03:00.4]} 5. a3 {[%clk 0:02:51.8]}
5... d6 {[%clk 0:03:00.6]} 6. Bd3 {[%clk 0:02:50.7]} 6... Nd7 {[%clk 0:03:00.6]}
7. O-O {[%clk 0:02:45.9]} 7... Bb7 {[%clk 0:03:01]} 8. Re1 {[%clk 0:02:41.8]}
8... e6 {[%clk 0:03:01.2]} 9. h3 {[%clk 0:02:37.2]} 9... Ne7 {[%clk 0:03:01.3]}
10. Be3 {[%clk 0:02:29.4]} 10... O-O {[%clk 0:03:01.4]} 11. Qd2 {[%clk
0:02:26.5]} 11... c5 {[%clk 0:03:01.5]} 12. Bh6 {[%clk 0:02:21.8]} 12... Nc6
{[%clk 0:02:20.4]} 13. Bxg7 {[%clk 0:02:19.6]} 13... Kxg7 {[%clk 0:02:20.7]} 14.
Bf1 {[%clk 0:02:10.2]} 14... e5 {[%clk 0:02:01.3]} 15. dxc5 {[%clk 0:02:01.7]}
15... dxc5 {[%clk 0:01:57]} 16. Rad1 {[%clk 0:01:58.8]} 16... Nd4 {[%clk
0:01:53.8]} 17. Nxd4 {[%clk 0:01:26.5]} 17... cxd4 {[%clk 0:01:54.1]} 18. Nd5
{[%clk 0:01:16.2]} 18... Nb6 {[%clk 0:01:53.6]} 19. Nxb6 {[%clk 0:01:13.6]}
19... Qxb6 {[%clk 0:01:54.5]} 20. c3 {[%clk 0:01:12.7]} 20... Rfd8 {[%clk
0:01:54.3]} 21. cxd4 {[%clk 0:01:10.7]} 21... Rxd4 {[%clk 0:01:55.2]} 22. Qe3
{[%clk 0:01:05.1]} 22... Rad8 {[%clk 0:01:50]} 23. Rxd4 {[%clk 0:01:01.8]} 23...
Qxd4 {[%clk 0:01:48.5]} 24. Qxd4 {[%clk 0:01:00]} 24... Rxd4 {[%clk 0:01:49.4]}
25. f3 {[%clk 0:00:58.6]} 25... Rd2 {[%clk 0:01:44]} 26. Re2 {[%clk 0:00:59]}
26... Rd1 {[%clk 0:01:43.9]} 27. Rc2 {[%clk 0:00:54.9]} 27... Rd7 {[%clk
0:01:26.1]} 28. Kf2 {[%clk 0:00:52.1]} 28... f5 {[%clk 0:01:26.3]} 29. exf5
{[%clk 0:00:41.2]} 29... gxf5 {[%clk 0:01:27.2]} 30. Be2 {[%clk 0:00:34.9]}
30... Kf6 {[%clk 0:01:25.9]} 31. Ke3 {[%clk 0:00:25.1]} 31... Ke6 {[%clk
0:01:23.9]} 32. b3 {[%clk 0:00:18.2]} 32... h5 {[%clk 0:01:19.7]} 33. a4 {[%clk
0:00:14.2]} 33... bxa4 {[%clk 0:01:07.9]} 34. bxa4 {[%clk 0:00:14]} 34... h4
{[%clk 0:00:56.7]} 35. Rb2 {[%clk 0:00:12.9]} 35... Rc7 {[%clk 0:00:53.6]} 36.
Rb6+ {[%clk 0:00:12.5]} 36... Kd5 {[%clk 0:00:49.2]} 37. Bxa6 {[%clk 0:00:12.2]}
37... Rc3+ {[%clk 0:00:41.3]} 38. Kd2 {[%clk 0:00:08.6]} 38... Bxa6 {[%clk
0:00:37.9]} 39. Kxc3 {[%clk 0:00:08.1]} 39... Bf1 {[%clk 0:00:38.3]} 40. a5
{[%clk 0:00:04.9]} 40... Bxg2 {[%clk 0:00:38.4]} 41. a6 {[%clk 0:00:02.8]} 41...
Bxf3 {[%clk 0:00:38.6]} 42. a7 {[%clk 0:00:02.9]} 42... Kc5 {[%clk 0:00:38.7]}
43. Rb8 {[%clk 0:00:03.3]} 43... f4 {[%clk 0:00:36.7]} 44. a8=Q {[%clk 0:00:03]}
44... Bxa8 {[%clk 0:00:37.3]} 45. Rxa8 {[%clk 0:00:03.9]} 45... e4 {[%clk
0:00:37.9]} 46. Rd8 {[%clk 0:00:03.1]} 46... f3 {[%clk 0:00:37.8]} 47. Kd2
{[%clk 0:00:02]} 47... f2 {[%clk 0:00:36.3]} 48. Ke2 {[%clk 0:00:02.5]} 48... e3
{[%clk 0:00:37.2]} 49. Re8 {[%clk 0:00:02.6]} 49... Kd4 {[%clk 0:00:38.1]} 50.
Rf8 {[%clk 0:00:02.7]} 50... f1=Q+ {[%clk 0:00:39]} 51. Rxf1 {[%clk 0:00:02.4]}
51... Ke4 {[%clk 0:00:39.9]} 52. Rf3 {[%clk 0:00:02.6]} 52... Kd4 {[%clk
0:00:39.8]} 53. Rxe3 {[%clk 0:00:03.5]} 1-0

[Event "Early-Titled-Tuesday-Blitz-January-16-2024"]
[Site "Chess.com"]
[Date "2024.01.16"]
[Round "3"]
[White "RCone"]
[Black "SmirnovAlexandrA"]
[Result "0-1"]
[WhiteElo "2441"]
[BlackElo "2642"]
[TimeControl "180+1"]
[EndTime "8:29:38 PST"]
[Termination "SmirnovAlexandrA won on time"]

1. e4 {[%clk 0:03:00.9]} 1... d5 {[%clk 0:02:50.7]} 2. exd5 {[%clk 0:02:55.5]}
2... Qxd5 {[%clk 0:02:51.6]} 3. Nc3 {[%clk 0:02:44.9]} 3... Qd6 {[%clk
0:02:51.8]} 4. d4 {[%clk 0:02:36.4]} 4... Nf6 {[%clk 0:02:51.7]} 5. Nf3 {[%clk
0:02:19.6]} 5... a6 {[%clk 0:02:51.9]} 6. g3 {[%clk 0:02:08.8]} 6... Bg4 {[%clk
0:02:49.3]} 7. Bg2 {[%clk 0:02:04.1]} 7... Nc6 {[%clk 0:02:48.9]} 8. Bf4 {[%clk
0:01:51.2]} 8... Qb4 {[%clk 0:02:45.7]} 9. h3 {[%clk 0:01:44.2]} 9... Bh5 {[%clk
0:02:37.2]} 10. g4 {[%clk 0:01:43.5]} 10... Bg6 {[%clk 0:02:36.9]} 11. Ne5
{[%clk 0:01:23.8]} 11... Nxd4 {[%clk 0:02:30.9]} 12. Nxg6 {[%clk 0:01:16.5]}
12... hxg6 {[%clk 0:02:31.8]} 13. Bxc7 {[%clk 0:01:04.4]} 13... e6 {[%clk
0:02:24.4]} 14. O-O {[%clk 0:01:02.3]} 14... Bd6 {[%clk 0:02:18.3]} 15. Bxd6
{[%clk 0:01:00.5]} 15... Qxd6 {[%clk 0:02:19.2]} 16. Ne4 {[%clk 0:00:54.9]}
16... Nxe4 {[%clk 0:02:15]} 17. Bxe4 {[%clk 0:00:55.4]} 17... Rxh3 {[%clk
0:02:12.6]} 18. f4 {[%clk 0:00:52.7]} 18... Qb6 {[%clk 0:02:06.4]} 19. Kg2
{[%clk 0:00:49.4]} 19... Rh8 {[%clk 0:01:39.7]} 20. c3 {[%clk 0:00:49]} 20...
Nc6 {[%clk 0:01:36.5]} 21. Qb3 {[%clk 0:00:42.9]} 21... Qc7 {[%clk 0:01:24]} 22.
Rad1 {[%clk 0:00:19.3]} 22... g5 {[%clk 0:01:22.7]} 23. Bxc6+ {[%clk 0:00:17.4]}
23... Qxc6+ {[%clk 0:01:22.3]} 24. Kg3 {[%clk 0:00:16.5]} 24... gxf4+ {[%clk
0:01:19.5]} 25. Rxf4 {[%clk 0:00:17.4]} 25... Qc7 {[%clk 0:01:12.9]} 26. Kf3
{[%clk 0:00:16.3]} 26... Rh3+ {[%clk 0:01:11.8]} 27. Kg2 {[%clk 0:00:16.9]}
27... Rh4 {[%clk 0:00:40]} 28. Qa4+ {[%clk 0:00:14.3]} 28... b5 {[%clk
0:00:30.1]} 29. Qe4 {[%clk 0:00:13.5]} 29... Rc8 {[%clk 0:00:27.2]} 30. Rdf1
{[%clk 0:00:07.9]} 30... g5 {[%clk 0:00:24.9]} 31. R4f2 {[%clk 0:00:03.5]} 31...
Rh2+ {[%clk 0:00:16]} 32. Kf3 {[%clk 0:00:04.1]} 32... Rxf2+ {[%clk 0:00:16.5]}
33. Rxf2 {[%clk 0:00:04]} 33... Qc6 {[%clk 0:00:16.4]} 34. Qxc6+ {[%clk
0:00:03.7]} 34... Rxc6 {[%clk 0:00:17.3]} 35. Ke4 {[%clk 0:00:04.3]} 35... Ke7
{[%clk 0:00:17.4]} 36. a3 {[%clk 0:00:04.3]} 36... Rc4+ {[%clk 0:00:17.6]} 37.
Kf3 {[%clk 0:00:04]} 37... Rf4+ {[%clk 0:00:17.8]} 38. Kg3 {[%clk 0:00:04.8]}
38... Rxf2 {[%clk 0:00:18.6]} 39. Kxf2 {[%clk 0:00:05.6]} 39... Kd6 {[%clk
0:00:18.8]} 40. b3 {[%clk 0:00:06.1]} 40... f5 {[%clk 0:00:19]} 41. Kf3 {[%clk
0:00:06.4]} 41... Ke5 {[%clk 0:00:19]} 42. Ke3 {[%clk 0:00:02.7]} 42... a5
{[%clk 0:00:18]} 43. c4 {[%clk 0:00:02.2]} 43... bxc4 {[%clk 0:00:17.8]} 44.
bxc4 {[%clk 0:00:03.1]} 44... Kd6 {[%clk 0:00:17.9]} 45. Kd4 {[%clk 0:00:02.1]}
45... fxg4 {[%clk 0:00:16.5]} 46. c5+ {[%clk 0:00:03]} 46... Kc6 {[%clk
0:00:16.8]} 47. Ke4 {[%clk 0:00:02.8]} 47... Kxc5 {[%clk 0:00:17.7]} 48. Ke5
{[%clk 0:00:03]} 48... g3 {[%clk 0:00:17.5]} 49. Ke4 {[%clk 0:00:03.7]} 49... g2
{[%clk 0:00:18.4]} 0-1

[Event "Early-Titled-Tuesday-Blitz-January-16-2024"]
[Site "Chess.com"]
[Date "2024.01.16"]
[Round "3"]
[White "JonasEilenberg"]
[Black "Gryffindorac8"]
[Result "1-0"]
[WhiteElo "2533"]
[BlackElo "2346"]
[TimeControl "180+1"]
[EndTime "8:29:38 PST"]
[Termination "JonasEilenberg won by resignation"]

1. d4 {[%clk 0:03:00.9]} 1... Nf6 {[%clk 0:02:59.1]} 2. Nc3 {[%clk 0:03:00.7]}
2... d5 {[%clk 0:02:56.6]} 3. Bf4 {[%clk 0:03:00.7]} 3... a6 {[%clk 0:02:54.6]}
4. e3 {[%clk 0:02:41.3]} 4... b5 {[%clk 0:02:50.6]} 5. Bd3 {[%clk 0:02:41.5]}
5... e6 {[%clk 0:02:45]} 6. Nf3 {[%clk 0:02:41.9]} 6... c5 {[%clk 0:02:43.2]} 7.
dxc5 {[%clk 0:02:42.8]} 7... Bxc5 {[%clk 0:02:38.5]} 8. O-O {[%clk 0:02:43.2]}
8... Bb7 {[%clk 0:02:29.6]} 9. a4 {[%clk 0:02:38.1]} 9... b4 {[%clk 0:02:27.3]}
10. Ne2 {[%clk 0:02:38.2]} 10... O-O {[%clk 0:02:26.7]} 11. Ne5 {[%clk
0:02:38.2]} 11... Nbd7 {[%clk 0:02:24.4]} 12. Nd4 {[%clk 0:02:37.9]} 12... Nxe5
{[%clk 0:02:21.5]} 13. Bxe5 {[%clk 0:02:37.8]} 13... Bd6 {[%clk 0:02:20.9]} 14.
Bxd6 {[%clk 0:02:31.5]} 14... Qxd6 {[%clk 0:02:21.8]} 15. a5 {[%clk 0:02:30.8]}
15... e5 {[%clk 0:02:09.2]} 16. Nb3 {[%clk 0:02:29.9]} 16... Rac8 {[%clk
0:02:01.2]} 17. Qd2 {[%clk 0:02:29.4]} 17... Rfd8 {[%clk 0:01:58.4]} 18. Rad1
{[%clk 0:02:29.2]} 18... h5 {[%clk 0:01:48.9]} 19. h3 {[%clk 0:02:23.3]} 19...
g6 {[%clk 0:01:47]} 20. f4 {[%clk 0:01:54.4]} 20... Kg7 {[%clk 0:01:34.6]} 21.
fxe5 {[%clk 0:01:43.7]} 21... Qxe5 {[%clk 0:01:33.8]} 22. Qxb4 {[%clk
0:01:44.4]} 22... Qxe3+ {[%clk 0:01:29.6]} 23. Kh1 {[%clk 0:01:43.8]} 23... Rc7
{[%clk 0:01:21.2]} 24. Rde1 {[%clk 0:01:38.1]} 24... Qg3 {[%clk 0:01:09.2]} 25.
Nd4 {[%clk 0:01:19.9]} 25... Ne4 {[%clk 0:01:08]} 26. Qb6 {[%clk 0:01:08.8]}
26... Rcd7 {[%clk 0:01:01.1]} 27. Rf3 {[%clk 0:00:56.6]} 27... Qxe1+ {[%clk
0:00:47.7]} 28. Kh2 {[%clk 0:00:56]} 28... Qh4 {[%clk 0:00:36.5]} 29. c3 {[%clk
0:00:50.3]} 29... Qe7 {[%clk 0:00:34.9]} 30. Bxa6 {[%clk 0:00:40.6]} 30... Bxa6
{[%clk 0:00:31]} 31. Qxa6 {[%clk 0:00:41.5]} 31... Qd6+ {[%clk 0:00:30.9]} 32.
Qxd6 {[%clk 0:00:38.8]} 32... Rxd6 {[%clk 0:00:31.8]} 33. b4 {[%clk 0:00:38.2]}
33... Rc8 {[%clk 0:00:29.7]} 34. b5 {[%clk 0:00:35.9]} 34... Rxc3 {[%clk
0:00:27.8]} 35. Rxc3 {[%clk 0:00:32.8]} 35... Nxc3 {[%clk 0:00:26.7]} 36. b6
{[%clk 0:00:33.7]} 36... Na4 {[%clk 0:00:19.3]} 37. b7 {[%clk 0:00:32.5]} 37...
Rd8 {[%clk 0:00:17.3]} 38. Nc6 {[%clk 0:00:32.9]} 38... Re8 {[%clk 0:00:17]} 39.
a6 {[%clk 0:00:27.7]} 39... Nc5 {[%clk 0:00:16.7]} 40. b8=Q {[%clk 0:00:27.3]}
40... Rxb8 {[%clk 0:00:13.5]} 41. Nxb8 {[%clk 0:00:28.2]} 41... Nxa6 {[%clk
0:00:12.5]} 42. Nxa6 {[%clk 0:00:29.1]} 42... Kf6 {[%clk 0:00:12.8]} 43. Kg3
{[%clk 0:00:27.1]} 43... Ke5 {[%clk 0:00:12.9]} 44. Kf3 {[%clk 0:00:27.6]} 44...
g5 {[%clk 0:00:10.9]} 45. Nb4 {[%clk 0:00:26.6]} 45... f5 {[%clk 0:00:10.1]} 46.
Ke3 {[%clk 0:00:22.5]} 46... h4 {[%clk 0:00:07.5]} 47. Nd3+ {[%clk 0:00:21.9]}
47... Ke6 {[%clk 0:00:06.5]} 48. Kd4 {[%clk 0:00:21.9]} 48... g4 {[%clk
0:00:06.6]} 49. Nf4+ {[%clk 0:00:21.6]} 49... Kf6 {[%clk 0:00:06.7]} 50. Kxd5
{[%clk 0:00:20.8]} 50... Kg5 {[%clk 0:00:06.9]} 51. Ke5 {[%clk 0:00:20.6]} 51...
gxh3 {[%clk 0:00:05.7]} 52. gxh3 {[%clk 0:00:21.5]} 52... Kh6 {[%clk 0:00:04.1]}
53. Kxf5 {[%clk 0:00:22]} 53... Kg7 {[%clk 0:00:04.6]} 54. Kg4 {[%clk
0:00:22.5]} 54... Kh7 {[%clk 0:00:05.5]} 55. Kxh4 {[%clk 0:00:23]} 55... Kg7
{[%clk 0:00:06.4]} 56. Kg4 {[%clk 0:00:23.6]} 1-0

[Event "Early-Titled-Tuesday-Blitz-January-16-2024"]
[Site "Chess.com"]
[Date "2024.01.16"]
[Round "3"]
[White "mertfelin"]
[Black "JoliyRoger"]
[Result "0-1"]
[WhiteElo "2230"]
[BlackElo "2470"]
[TimeControl "180+1"]
[EndTime "8:29:38 PST"]
[Termination "JoliyRoger won by resignation"]

1. e4 {[%clk 0:03:00.4]} 1... c6 {[%clk 0:03:00]} 2. Nc3 {[%clk 0:03:00.6]} 2...
d5 {[%clk 0:03:00.9]} 3. Nf3 {[%clk 0:03:01.2]} 3... Nf6 {[%clk 0:02:59.8]} 4.
e5 {[%clk 0:02:59.5]} 4... Ne4 {[%clk 0:03:00.4]} 5. Ne2 {[%clk 0:03:00.1]} 5...
e6 {[%clk 0:03:00.3]} 6. Ng3 {[%clk 0:02:56.2]} 6... Nxg3 {[%clk 0:03:00.1]} 7.
fxg3 {[%clk 0:02:57.1]} 7... c5 {[%clk 0:02:55.9]} 8. Bb5+ {[%clk 0:02:55.3]}
8... Bd7 {[%clk 0:02:55.5]} 9. Bxd7+ {[%clk 0:02:54.8]} 9... Nxd7 {[%clk
0:02:54.9]} 10. O-O {[%clk 0:02:55.7]} 10... Be7 {[%clk 0:02:55.4]} 11. d3
{[%clk 0:02:53.1]} 11... O-O {[%clk 0:02:52]} 12. Bf4 {[%clk 0:02:51.4]} 12...
Qb6 {[%clk 0:02:49.2]} 13. Kh1 {[%clk 0:02:51.7]} 13... Qd8 {[%clk 0:02:26.7]}
14. h3 {[%clk 0:02:48.8]} 14... b5 {[%clk 0:02:23.1]} 15. Qe2 {[%clk 0:02:45.6]}
15... Rc8 {[%clk 0:02:21.3]} 16. Nh2 {[%clk 0:02:45.9]} 16... d4 {[%clk
0:02:15.9]} 17. Ng4 {[%clk 0:02:41.6]} 17... Nb6 {[%clk 0:02:13.9]} 18. Bd2
{[%clk 0:02:36.3]} 18... c4 {[%clk 0:02:12.1]} 19. Ba5 {[%clk 0:02:09.9]} 19...
cxd3 {[%clk 0:02:03.4]} 20. Qxd3 {[%clk 0:02:07.6]} 20... Qc7 {[%clk 0:01:58.1]}
21. Qxd4 {[%clk 0:01:47.1]} 21... Qxc2 {[%clk 0:01:56.5]} 22. Bxb6 {[%clk
0:01:06.3]} 22... axb6 {[%clk 0:01:56.3]} 23. Rf2 {[%clk 0:01:06.3]} 23... Qc4
{[%clk 0:01:50.9]} 24. Qd1 {[%clk 0:00:52.1]} 24... Bg5 {[%clk 0:01:39.9]} 25.
Qf3 {[%clk 0:00:49.4]} 25... b4 {[%clk 0:01:21.8]} 26. h4 {[%clk 0:00:44]} 26...
Be7 {[%clk 0:01:16.8]} 27. Rd1 {[%clk 0:00:44]} 27... Qc6 {[%clk 0:01:12.4]} 28.
Qxc6 {[%clk 0:00:42.4]} 28... Rxc6 {[%clk 0:01:12]} 29. Rd7 {[%clk 0:00:43.3]}
29... Bc5 {[%clk 0:01:08.4]} 30. Rf3 {[%clk 0:00:38.4]} 30... h5 {[%clk
0:01:07.7]} 31. Nf2 {[%clk 0:00:29.5]} 31... Bxf2 {[%clk 0:01:00.8]} 32. Rxf2
{[%clk 0:00:30.4]} 32... Rc5 {[%clk 0:00:59.3]} 33. Rb7 {[%clk 0:00:27.3]} 33...
b5 {[%clk 0:00:59.3]} 34. Rf4 {[%clk 0:00:28]} 34... Rxe5 {[%clk 0:00:55.3]} 35.
Rxb4 {[%clk 0:00:28]} 35... Rd8 {[%clk 0:00:53.2]} 36. R7xb5 {[%clk 0:00:26.1]}
36... Rd1+ {[%clk 0:00:53.6]} 37. Kh2 {[%clk 0:00:26.4]} 37... Ree1 {[%clk
0:00:54.5]} 38. g4 {[%clk 0:00:21]} 38... Rh1+ {[%clk 0:00:49.4]} 39. Kg3 {[%clk
0:00:21.6]} 39... Rd3+ {[%clk 0:00:49.2]} 40. Kf2 {[%clk 0:00:20.6]} 40... Rxh4
{[%clk 0:00:42.8]} 41. Rxh5 {[%clk 0:00:20.3]} 41... Rd2+ {[%clk 0:00:25.7]} 42.
Kg3 {[%clk 0:00:18.8]} 42... Rxh5 {[%clk 0:00:26.1]} 43. gxh5 {[%clk 0:00:19.1]}
43... Kh7 {[%clk 0:00:23]} 44. a4 {[%clk 0:00:19.5]} 44... e5 {[%clk 0:00:21]}
45. Rb5 {[%clk 0:00:19.9]} 45... Rd4 {[%clk 0:00:17.6]} 46. a5 {[%clk
0:00:19.4]} 46... f6 {[%clk 0:00:16.7]} 47. b4 {[%clk 0:00:18.5]} 47... Rd3+
{[%clk 0:00:14.7]} 48. Kh2 {[%clk 0:00:18.5]} 48... e4 {[%clk 0:00:12.2]} 49.
Rb7 {[%clk 0:00:15.5]} 49... e3 {[%clk 0:00:10.6]} 50. Kg1 {[%clk 0:00:15.6]}
50... Rd1+ {[%clk 0:00:10.3]} 51. Kh2 {[%clk 0:00:16]} 51... e2 {[%clk 0:00:11]}
0-1

[Event "Early-Titled-Tuesday-Blitz-January-16-2024"]
[Site "Chess.com"]
[Date "2024.01.16"]
[Round "3"]
[White "sokidze"]
[Black "BogdanDeac"]
[Result "1-0"]
[WhiteElo "2783"]
[BlackElo "3022"]
[TimeControl "180+1"]
[EndTime "8:29:39 PST"]
[Termination "sokidze won by resignation"]

1. d4 {[%clk 0:03:00.9]} 1... Nf6 {[%clk 0:02:59.4]} 2. c4 {[%clk 0:02:59.4]}
2... e6 {[%clk 0:03:00]} 3. Nf3 {[%clk 0:02:58.9]} 3... d5 {[%clk 0:02:59.7]} 4.
g3 {[%clk 0:02:59]} 4... dxc4 {[%clk 0:02:59.7]} 5. Bg2 {[%clk 0:02:59.6]} 5...
Nc6 {[%clk 0:02:57.4]} 6. Qa4 {[%clk 0:02:53]} 6... Bd7 {[%clk 0:02:57.4]} 7.
Qxc4 {[%clk 0:02:51.4]} 7... Na5 {[%clk 0:02:57.6]} 8. Qc2 {[%clk 0:02:41.4]}
8... Rc8 {[%clk 0:02:57.3]} 9. O-O {[%clk 0:02:39]} 9... c5 {[%clk 0:02:56.6]}
10. Nc3 {[%clk 0:02:34.9]} 10... cxd4 {[%clk 0:02:56.5]} 11. Nxd4 {[%clk
0:02:35]} 11... Bb4 {[%clk 0:02:51]} 12. Rd1 {[%clk 0:02:27.9]} 12... O-O {[%clk
0:02:40.3]} 13. Nb3 {[%clk 0:01:59.7]} 13... Qb6 {[%clk 0:00:56.3]} 14. Be3
{[%clk 0:01:44.7]} 14... Qa6 {[%clk 0:00:56.1]} 15. Bd4 {[%clk 0:01:29.6]} 15...
Nd5 {[%clk 0:00:25.9]} 16. Qe4 {[%clk 0:00:41]} 16... Bxc3 {[%clk 0:00:20.6]}
17. bxc3 {[%clk 0:00:39.5]} 17... b6 {[%clk 0:00:03.5]} 18. Qg4 {[%clk
0:00:33.4]} 18... f6 {[%clk 0:00:02.6]} 19. Bxd5 {[%clk 0:00:32.5]} 19... exd5
{[%clk 0:00:01.9]} 20. Qxd7 {[%clk 0:00:32.6]} 20... Rfd8 {[%clk 0:00:02.7]} 21.
Qe6+ {[%clk 0:00:30.2]} 21... Kh8 {[%clk 0:00:03.1]} 22. Nxa5 {[%clk 0:00:29]}
22... Qxa5 {[%clk 0:00:02.5]} 23. e3 {[%clk 0:00:22.4]} 23... Re8 {[%clk
0:00:02.6]} 24. Qf5 {[%clk 0:00:21.9]} 24... Rcd8 {[%clk 0:00:02.7]} 25. a4
{[%clk 0:00:20.6]} 25... Rf8 {[%clk 0:00:02.9]} 26. Rdb1 {[%clk 0:00:20.1]}
26... Rc8 {[%clk 0:00:03]} 27. Rb5 {[%clk 0:00:20]} 27... Qa6 {[%clk 0:00:03.6]}
28. Qxd5 {[%clk 0:00:20.5]} 28... Rfd8 {[%clk 0:00:03.9]} 29. Qb3 {[%clk
0:00:20.7]} 29... Qb7 {[%clk 0:00:03.7]} 30. a5 {[%clk 0:00:20.6]} 30... Qf3
{[%clk 0:00:04.3]} 31. axb6 {[%clk 0:00:19.3]} 31... axb6 {[%clk 0:00:05.2]} 32.
Rxb6 {[%clk 0:00:18.1]} 32... h5 {[%clk 0:00:05.8]} 33. Qd1 {[%clk 0:00:17.8]}
33... Qf5 {[%clk 0:00:05.6]} 34. Rab1 {[%clk 0:00:17.1]} 34... h4 {[%clk
0:00:05.2]} 35. R6b5 {[%clk 0:00:17.1]} 35... Rd5 {[%clk 0:00:05.5]} 36. Rxd5
{[%clk 0:00:16.5]} 36... Qxd5 {[%clk 0:00:06.4]} 37. Qg4 {[%clk 0:00:15.6]}
37... Ra8 {[%clk 0:00:04.6]} 38. Qxh4+ {[%clk 0:00:15.8]} 38... Kg8 {[%clk
0:00:05.3]} 39. Qg4 {[%clk 0:00:12.9]} 39... Rf8 {[%clk 0:00:02.5]} 40. h4
{[%clk 0:00:11.8]} 40... Rf7 {[%clk 0:00:01.3]} 41. Rb8+ {[%clk 0:00:10.3]}
41... Kh7 {[%clk 0:00:01.4]} 42. e4 {[%clk 0:00:10.7]} 42... Qa5 {[%clk
0:00:01.7]} 43. Qf5+ {[%clk 0:00:10.3]} 43... Qxf5 {[%clk 0:00:01.3]} 44. exf5
{[%clk 0:00:11.2]} 44... Rd7 {[%clk 0:00:02.2]} 45. Kg2 {[%clk 0:00:10.3]} 45...
Rd5 {[%clk 0:00:02.5]} 46. g4 {[%clk 0:00:10.3]} 46... Ra5 {[%clk 0:00:03.2]}
47. Rb7 {[%clk 0:00:10.4]} 1-0

[Event "Early-Titled-Tuesday-Blitz-January-16-2024"]
[Site "Chess.com"]
[Date "2024.01.16"]
[Round "3"]
[White "LyonBeast"]
[Black "jk13"]
[Result "1-0"]
[WhiteElo "3136"]
[BlackElo "2669"]
[TimeControl "180+1"]
[EndTime "8:29:39 PST"]
[Termination "LyonBeast won by resignation"]

1. e4 {[%clk 0:02:48]} 1... e5 {[%clk 0:02:59.6]} 2. Nf3 {[%clk 0:02:47.3]} 2...
Nc6 {[%clk 0:03:00.2]} 3. Bc4 {[%clk 0:02:45.5]} 3... Bc5 {[%clk 0:03:00.4]} 4.
c3 {[%clk 0:02:45.7]} 4... Nf6 {[%clk 0:03:01]} 5. d3 {[%clk 0:02:46.2]} 5...
O-O {[%clk 0:03:01.3]} 6. O-O {[%clk 0:02:45.9]} 6... d5 {[%clk 0:03:00.7]} 7.
exd5 {[%clk 0:02:45.9]} 7... Nxd5 {[%clk 0:03:01.6]} 8. Re1 {[%clk 0:02:42]}
8... Nb6 {[%clk 0:02:57.6]} 9. Bb5 {[%clk 0:02:33.6]} 9... f6 {[%clk 0:02:53.2]}
10. a4 {[%clk 0:02:25.8]} 10... a6 {[%clk 0:02:38.5]} 11. Bxc6 {[%clk
0:02:24.3]} 11... bxc6 {[%clk 0:02:39.4]} 12. a5 {[%clk 0:02:24.7]} 12... Nd5
{[%clk 0:02:35.9]} 13. Nbd2 {[%clk 0:02:11.2]} 13... Bg4 {[%clk 0:02:19.7]} 14.
Qa4 {[%clk 0:02:02.5]} 14... Qd7 {[%clk 0:02:14.9]} 15. h3 {[%clk 0:01:46.9]}
15... Bf5 {[%clk 0:02:05.5]} 16. Ne4 {[%clk 0:01:29.8]} 16... Ba7 {[%clk
0:02:05.5]} 17. Bd2 {[%clk 0:01:21.7]} 17... Rab8 {[%clk 0:02:02.5]} 18. b4
{[%clk 0:01:18.2]} 18... Rbd8 {[%clk 0:01:55.9]} 19. Kh2 {[%clk 0:01:03.9]}
19... Ne7 {[%clk 0:01:51.6]} 20. d4 {[%clk 0:01:03.9]} 20... exd4 {[%clk
0:01:48.2]} 21. cxd4 {[%clk 0:01:04.5]} 21... Rfe8 {[%clk 0:01:29.1]} 22. Ng3
{[%clk 0:00:54.7]} 22... Be6 {[%clk 0:01:25.7]} 23. Rac1 {[%clk 0:00:48.5]}
23... Bd5 {[%clk 0:01:26]} 24. Rc3 {[%clk 0:00:47.5]} 24... Nc8 {[%clk
0:01:22.2]} 25. Qc2 {[%clk 0:00:41.8]} 25... Nd6 {[%clk 0:01:18]} 26. Rxe8+
{[%clk 0:00:40.5]} 26... Rxe8 {[%clk 0:01:17.8]} 27. Re3 {[%clk 0:00:38.7]}
27... Re6 {[%clk 0:00:41.3]} 28. Nh5 {[%clk 0:00:33.2]} 28... Ne4 {[%clk
0:00:37.1]} 29. Nf4 {[%clk 0:00:29.9]} 29... Qd6 {[%clk 0:00:34.5]} 30. g3
{[%clk 0:00:24.3]} 30... Re7 {[%clk 0:00:21.5]} 31. Be1 {[%clk 0:00:21.3]} 31...
Kf7 {[%clk 0:00:15.8]} 32. Nh4 {[%clk 0:00:21.4]} 32... Qd7 {[%clk 0:00:14.3]}
33. Qd1 {[%clk 0:00:18.8]} 33... Kg8 {[%clk 0:00:13.4]} 34. Nf3 {[%clk
0:00:13.3]} 34... Nd6 {[%clk 0:00:11.8]} 35. Rxe7 {[%clk 0:00:12.8]} 35... Qxe7
{[%clk 0:00:12]} 36. Bc3 {[%clk 0:00:12.1]} 36... Qe4 {[%clk 0:00:11.4]} 37. Nd2
{[%clk 0:00:11.6]} 37... Qf5 {[%clk 0:00:09.9]} 38. Qe2 {[%clk 0:00:10.8]} 38...
Kf7 {[%clk 0:00:09.7]} 39. Qxa6 {[%clk 0:00:09.2]} 39... g5 {[%clk 0:00:07.1]}
40. Nd3 {[%clk 0:00:08.7]} 40... Ne4 {[%clk 0:00:05.6]} 41. g4 {[%clk
0:00:07.3]} 41... Qe6 {[%clk 0:00:05.2]} 42. Qxa7 {[%clk 0:00:07]} 42... Nxd2
{[%clk 0:00:05]} 43. Qxc7+ {[%clk 0:00:07.1]} 43... Kg6 {[%clk 0:00:05.4]} 44.
Bxd2 {[%clk 0:00:06.9]} 44... Qe4 {[%clk 0:00:05.7]} 45. Ne5+ {[%clk 0:00:07.3]}
45... fxe5 {[%clk 0:00:05.2]} 46. Qd6+ {[%clk 0:00:07.5]} 46... Kg7 {[%clk
0:00:05]} 47. Qe7+ {[%clk 0:00:07.8]} 47... Kg6 {[%clk 0:00:05]} 48. Qxg5+
{[%clk 0:00:08]} 48... Kf7 {[%clk 0:00:05.3]} 49. Qh5+ {[%clk 0:00:07.7]} 49...
Ke7 {[%clk 0:00:04.6]} 50. Qxe5+ {[%clk 0:00:07.7]} 50... Qxe5+ {[%clk
0:00:05.2]} 51. dxe5 {[%clk 0:00:08.6]} 51... c5 {[%clk 0:00:05.2]} 52. bxc5
{[%clk 0:00:08.7]} 52... Ke6 {[%clk 0:00:05.2]} 53. f4 {[%clk 0:00:09.6]} 1-0